bitfinex/quotes_SOLUSD_20241214
["timestamp","ask_amount","ask_price","bid_price","bid_amount"]
[1734199724348,1.8853,218.77,218.7,13.83974593]
[1734199724736,1.8853,218.77,218.69,13.83974593]
[1734199725249,1.8853,218.77,218.71,13.83974593]
[1734199726341,1.8853,218.77,218.69,13.83974593]
[1734199726644,1.8853,218.77,218.68,13.83974593]
[1734199726845,1.8853,218.77,218.69,13.83974593]
[1734199728141,1.8853,218.77,218.68,13.83974593]
[1734199735347,1.8853,218.77,218.68,8.82644719]
[1734199735742,1.8853,218.77,218.69,8.82644719]
[1734199736267,1.8853,218.77,218.68,8.82644719]
[1734199737132,1.8853,218.77,218.69,8.82644719]
[1734199737338,1.8853,218.77,218.71,8.82644719]
[1734199738556,1.8853,218.77,218.7,8.82644719]
[1734199739278,1.8853,218.77,218.71,8.82644719]
[1734199740678,20.0,218.78,218.71,8.82644719]
[1734199741658,20.0,218.78,218.72,8.82644719]
[1734199742554,20.0,218.78,218.7,8.82644719]
[1734199743646,20.0,218.78,218.65,20.68567195]
[1734199743840,20.0,218.78,218.67,8.82644719]
[1734199744041,20.0,218.74,218.58,136.5441]
[1734199744259,20.0,218.74,218.64,8.82644719]
[1734199744260,21.8665,218.74,218.64,8.82644719]
[1734199744458,21.8665,218.74,218.66,30.0]
[1734199745053,21.8665,218.74,218.64,8.82644719]
[1734199747681,21.8665,218.74,218.65,8.82644719]
[1734199748792,21.8665,218.74,218.66,8.82644719]
[1734199750186,21.8665,218.74,218.67,8.82644719]
[1734199751047,1.8665,218.74,218.69,8.82644719]
[1734199751250,1.8665,218.74,218.67,8.82644719]
[1734199751685,1.8665,218.74,218.66,8.82644719]
[1734199751849,1.8665,218.74,218.67,8.82644719]
[1734199752774,0.12549,218.73,218.64,8.82644719]
[1734199752957,6.4094,218.72,218.63,8.82644719]
[1734199753148,6.4094,218.72,218.62,8.82644719]
[1734199753966,6.4094,218.72,218.63,8.82644719]
[1734199754160,6.4094,218.72,218.67,8.82644719]
[1734199754370,21.8665,218.74,218.69,8.82644719]
[1734199754704,6.4094,218.77,218.69,8.82644719]
[1734199756364,6.4094,218.77,218.71,8.82644719]
[1734199758270,1.8257,218.8,218.71,8.82644719]
[1734199758473,1.8257,218.8,218.74,8.82644719]
[1734199758985,6.1175,218.81,218.74,8.82644719]
[1734199759486,0.5493292,218.84,218.76,8.82644719]
[1734199760168,20.0,218.83,218.74,8.82644719]
[1734199760362,20.0,218.83,218.75,8.82644719]
[1734199760870,20.0,218.83,218.76,8.82644719]
[1734199761377,20.0,218.83,218.77,8.82644719]
[1734199761587,20.0,218.83,218.76,8.82644719]
[1734199763988,20.0,218.83,218.75,8.82644719]
[1734199765604,20.0,218.83,218.76,8.82644719]
[1734199767296,20.0,218.83,218.77,8.82644719]
[1734199768201,20.0,218.83,218.76,8.82644719]
[1734199768784,20.0,218.83,218.75,8.82644719]
[1734199768991,20.0,218.83,218.71,23.776884]
[1734199769291,20.0,218.83,218.72,30.0]
[1734199769506,24.027864,218.82,218.72,30.0]
[1734199769822,20.0,218.79,218.72,30.0]
[1734199770034,20.0,218.79,218.6,1.7945]
[1734199770035,1.859,218.77,218.6,1.7945]
[1734199770320,1.859,218.77,218.65,8.82644719]
[1734199771022,1.859,218.77,218.66,8.82644719]
[1734199771202,1.859,218.77,218.67,8.82644719]
[1734199771598,1.859,218.77,218.66,8.82644719]
[1734199775199,1.859,218.77,218.67,8.82644719]
[1734199775400,1.859,218.77,218.68,8.82644719]
[1734199779415,20.0,218.75,218.63,24.58819892]
[1734199779723,20.0,218.75,218.68,8.82644719]
[1734199781615,20.0,218.75,218.66,8.82644719]
[1734199782126,20.0,218.75,218.67,8.82644719]
[1734199782303,20.0,218.75,218.68,8.82644719]
[1734199783226,20.0,218.75,218.67,8.82644719]
[1734199784235,20.0,218.75,218.66,8.82644719]
[1734199784538,1.859,218.77,218.66,8.82644719]
[1734199784739,20.0,218.75,218.66,8.82644719]
[1734199785231,20.0,218.75,218.67,8.82644719]
[1734199787634,20.0,218.75,218.66,8.82644719]
[1734199787814,20.0,218.71,218.62,8.82644719]
[1734199788012,20.0,218.71,218.62,38.82644719]
[1734199788323,20.0,218.71,218.62,30.0]
[1734199788518,20.0,218.67,218.62,30.0]
[1734199789421,20.0,218.67,218.6,30.0]
[1734199789639,20.0,218.67,218.59,26.24762699]
[1734199790917,0.12549,218.66,218.59,26.24762699]
[1734199791131,24.027864,218.66,218.59,26.24762699]
[1734199792979,6.2451,218.61,218.59,26.24762699]
[1734199793269,1.5899,218.6,218.59,26.24762699]
[1734199794462,23.902374,218.66,218.59,26.24762699]
[1734199794463,7.835,218.66,218.59,35.07407418]
[1734199794843,7.835,218.66,218.59,26.24762699]
[1734199795047,0.12549,218.65,218.59,26.24762699]
[1734199795649,20.0,218.63,218.59,26.24762699]
[1734199796848,7.835,218.66,218.59,35.07407418]
[1734199798548,7.835,218.66,218.59,26.24762699]
[1734199799808,6.2451,218.66,218.59,26.24762699]
[1734199799968,6.2451,218.66,218.59,35.07407418]
[1734199800865,23.902374,218.7,218.59,35.07407418]
[1734199801084,20.0,218.67,218.59,26.24762699]
[1734199801678,20.0,218.68,218.59,26.24762699]
[1734199801883,20.0,218.68,218.58,8.82644719]
[1734199802071,20.0,218.68,218.59,8.82644719]
[1734199802512,20.0,218.68,218.62,8.82644719]
[1734199802727,20.0,218.68,218.61,8.82644719]
[1734199802920,7.8813,218.71,218.61,8.82644719]
[1734199803493,7.8813,218.71,218.59,38.82644719]
[1734199803494,0.12549,218.7,218.59,38.82644719]
[1734199803792,0.12549,218.7,218.57,8.82644719]
[1734199804189,20.0,218.68,218.57,8.82644719]
[1734199804793,20.0,218.68,218.59,8.82644719]
[1734199805121,20.0,218.68,218.6,23.776884]
[1734199805532,20.0,218.68,218.55,20.0]
[1734199805816,20.0,218.68,218.58,8.82644719]
[1734199806702,20.0,218.68,218.6,8.82644719]
[1734199807016,20.0,218.68,218.56,54.4629551]
[1734199807017,20.0,218.68,218.59,8.82644719]
[1734199807219,20.0,218.68,218.59,23.776884]
[1734199807917,0.25098,218.67,218.55,20.0]
[1734199808220,0.25098,218.67,218.56,30.0]
[1734199808728,0.25098,218.67,218.55,28.82644719]
[1734199808729,0.25098,218.67,218.55,8.82644719]
[1734199810802,20.0,218.68,218.56,8.82644719]
[1734199811027,20.0,218.68,218.56,23.776884]
[1734199811406,20.0,218.68,218.55,8.82644719]
[1734199811407,0.12549,218.67,218.55,8.82644719]
[1734199812215,0.25098,218.67,218.55,8.82644719]
[1734199813143,20.0,218.64,218.55,8.82644719]
[1734199813823,0.12549,218.63,218.51,8.82644719]
[1734199814023,7.6945,218.62,218.51,8.82644719]
[1734199814433,7.6945,218.62,218.52,8.82644719]
[1734199815520,7.6945,218.62,218.53,8.82644719]
[1734199817523,7.93109,218.67,218.54,8.82644719]
[1734199817835,20.0,218.64,218.54,8.82644719]
[1734199818239,0.12549,218.63,218.52,8.82644719]
[1734199818537,20.0,218.6,218.53,30.0]
[1734199818709,6.30689,218.59,218.48,8.82644719]
[1734199819637,6.30689,218.59,218.46,2.3354806]
[1734199819847,20.0,218.56,218.49,8.82644719]
[1734199821041,20.0,218.56,218.48,8.82644719]
[1734199821730,20.0,218.56,218.49,8.82644719]
[1734199822033,20.0,218.56,218.48,8.82644719]
[1734199823134,20.0,218.56,218.47,8.82644719]
[1734199824116,20.0,218.56,218.46,10.47554719]
[1734199824646,20.0,218.56,218.46,8.82644719]
[1734199825139,20.0,218.56,218.43,23.902374]
[1734199825140,20.0,218.56,218.45,8.82644719]
[1734199826029,20.0,218.56,218.41,1.6681]
[1734199826030,0.12549,218.55,218.41,1.6681]
[1734199826339,0.12549,218.55,218.36,32.85983566]
[1734199826340,20.0,218.51,218.42,30.0]
[1734199826720,1.6242,218.5,218.42,30.0]
[1734199828239,1.6242,218.5,218.36,10.49454719]
[1734199828548,0.25098,218.49,218.36,10.49454719]
[1734199828725,0.25098,218.49,218.36,8.82644719]
[1734199828927,20.0,218.46,218.31,8.1979]
[1734199829111,26.1419,218.46,218.34,8.82644719]
[1734199829315,26.1419,218.46,218.32,30.0]
[1734199829316,26.1419,218.46,218.36,8.82644719]
[1734199829512,26.1419,218.46,218.37,8.82644719]
[1734199830648,26.1419,218.46,218.33,0.68679823]
[1734199830649,26.1419,218.46,218.36,8.82644719]
[1734199831249,26.1419,218.46,218.38,8.82644719]
[1734199831454,26.1419,218.46,218.34,23.776884]
[1734199831455,6.1419,218.46,218.39,8.82644719]
[1734199831621,1.6242,218.5,218.41,8.82644719]
[1734199831931,1.6242,218.5,218.34,29.83232699]
[1734199832241,1.6242,218.5,218.37,8.82644719]
[1734199832744,0.25098,218.49,218.36,8.82644719]
[1734199832926,0.12549,218.47,218.35,8.82644719]
[1734199833124,0.12549,218.47,218.33,8.82644719]
[1734199833351,24.027864,218.47,218.34,30.0]
[1734199833521,6.1419,218.43,218.34,30.0]
[1734199833925,20.0,218.4,218.32,8.82644719]
[1734199834120,20.0,218.4,218.31,10.44024719]
[1734199834551,20.0,218.4,218.32,8.82644719]
[1734199834742,20.0,218.4,218.33,8.82644719]
[1734199835130,20.0,218.4,218.32,8.82644719]
[1734199835745,20.0,218.4,218.33,8.82644719]
[1734199836062,6.1419,218.49,218.38,8.82644719]
[1734199836233,20.0,218.46,218.39,8.82644719]
[1734199836550,6.1419,218.49,218.39,8.82644719]
[1734199836754,6.1419,218.49,218.4,8.82644719]
[1734199837057,6.1419,218.49,218.41,8.82644719]
[1734199837838,6.1419,218.49,218.39,8.82644719]
[1734199838042,6.1419,218.49,218.4,8.82644719]
[1734199838236,6.1419,218.49,218.41,8.82644719]
[1734199838439,6.1419,218.49,218.37,0.12549]
[1734199838637,6.1419,218.49,218.41,8.82644719]
[1734199838842,6.1419,218.49,218.38,0.68658014]
[1734199838843,6.1419,218.49,218.42,8.82644719]
[1734199839160,6.1419,218.49,218.43,8.82644719]
[1734199839330,6.1641,218.54,218.44,8.82644719]
[1734199840357,0.12549,218.53,218.38,23.776884]
[1734199840542,0.25098,218.53,218.39,38.82644719]
[1734199840852,20.0,218.5,218.37,0.68650152]
[1734199841060,0.25098,218.49,218.35,0.68669778]
[1734199841244,0.25098,218.49,218.37,8.82644719]
[1734199841549,0.25098,218.49,218.38,8.82644719]
[1734199843326,1.5977,218.48,218.36,8.82644719]
[1734199843933,20.0,218.43,218.33,8.82644719]
[1734199844453,20.0,218.43,218.34,30.0]
[1734199844843,20.0,218.43,218.32,8.82644719]
[1734199846244,20.0,218.43,218.27,23.902374]
[1734199846442,20.0,218.43,218.3,8.82644719]
[1734199846636,20.0,218.43,218.31,8.82644719]
[1734199847359,20.0,218.43,218.32,8.82644719]
[1734199847872,20.0,218.43,218.34,8.82644719]
[1734199848070,20.0,218.43,218.37,8.82644719]
[1734199848270,6.1641,218.46,218.37,8.82644719]
[1734199848567,6.1641,218.46,218.38,8.82644719]
[1734199849763,6.1641,218.46,218.39,8.82644719]
[1734199850066,6.1641,218.46,218.38,8.82644719]
[1734199850366,6.1641,218.46,218.39,8.82644719]
[1734199852433,1.5977,218.48,218.42,8.82644719]
[1734199853271,1.5977,218.48,218.37,8.82644719]
[1734199853750,21.5977,218.48,218.37,8.82644719]
[1734199854350,21.5977,218.48,218.38,8.82644719]
[1734199855068,21.5977,218.48,218.39,8.82644719]
[1734199856546,21.5977,218.48,218.4,8.82644719]
[1734199857345,21.5977,218.48,218.41,8.82644719]
[1734199857548,1.5977,218.48,218.42,8.82644719]
[1734199857750,6.4988,218.51,218.44,8.82644719]
[1734199858167,1.5376,218.53,218.47,8.82644719]
[1734199858373,1.5376,218.53,218.41,23.902374]
[1734199858374,1.5376,218.53,218.49,8.82644719]
[1734199858549,6.3718,218.56,218.49,8.82644719]
[1734199859258,6.3718,218.56,218.5,8.82644719]
[1734199859749,6.3718,218.56,218.49,8.82644719]
[1734199859945,6.3718,218.56,218.48,8.82644719]
[1734199860668,20.0,218.53,218.47,8.82644719]
[1734199861051,6.3718,218.56,218.47,8.82644719]
[1734199861260,6.3718,218.56,218.48,13.81748222]
[1734199861655,6.3718,218.56,218.5,13.81748222]
[1734199862772,6.3718,218.56,218.48,13.81748222]
[1734199863680,6.3718,218.56,218.47,13.81748222]
[1734199863881,6.3718,218.56,218.48,13.81748222]
[1734199864348,6.3718,218.56,218.46,13.81748222]
[1734199864675,6.3718,218.56,218.47,13.81748222]
[1734199865769,20.0,218.53,218.47,13.81748222]
[1734199866149,20.0,218.53,218.46,13.81748222]
[1734199866351,20.0,218.53,218.45,13.81748222]
[1734199868053,20.0,218.53,218.43,13.81748222]
[1734199868673,20.0,218.53,218.44,13.81748222]
[1734199868871,20.0,218.53,218.45,13.81748222]
[1734199869575,20.0,218.53,218.44,13.81748222]
[1734199876755,0.12549,218.52,218.42,13.81748222]
[1734199876985,0.12549,218.52,218.41,13.81748222]
[1734199877276,0.12549,218.52,218.42,13.81748222]
[1734199877476,1.5471,218.51,218.41,13.81748222]
[1734199877676,20.0,218.47,218.4,13.81748222]
[1734199877867,20.0,218.47,218.39,13.81748222]
[1734199879172,20.0,218.47,218.38,13.81748222]
[1734199879372,20.0,218.47,218.39,30.0]
[1734199879572,20.0,218.47,218.35,13.81748222]
[1734199879777,20.0,218.47,218.34,13.81748222]
[1734199879778,0.25098,218.46,218.34,13.81748222]
[1734199879978,0.25098,218.46,218.33,13.81748222]
[1734199879979,1.5471,218.45,218.33,13.81748222]
[1734199880301,1.5471,218.45,218.34,30.0]
[1734199880851,1.5471,218.45,218.34,43.81748222]
[1734199881170,1.5471,218.45,218.34,38.85400814]
[1734199881362,0.12549,218.44,218.34,30.0]
[1734199881559,6.1921,218.43,218.29,1.5441]
[1734199881776,20.0,218.4,218.31,8.85400814]
[1734199882277,20.0,218.4,218.26,0.6869315]
[1734199882470,20.0,218.4,218.27,30.0]
[1734199882660,20.0,218.4,218.3,8.85400814]
[1734199882863,20.0,218.4,218.31,8.85400814]
[1734199884257,20.0,218.4,218.29,8.85400814]
[1734199884701,20.0,218.4,218.32,8.85400814]
[1734199884872,20.0,218.4,218.33,8.85400814]
[1734199885061,20.0,218.4,218.34,8.85400814]
[1734199886283,20.0,218.4,218.33,8.85400814]
[1734199886477,20.0,218.4,218.3,0.6868574]
[1734199886660,20.0,218.4,218.32,8.85400814]
[1734199887080,20.0,218.4,218.33,8.85400814]
[1734199888577,20.0,218.4,218.31,30.0]
[1734199888824,20.0,218.4,218.31,38.85400814]
[1734199888963,20.0,218.4,218.33,8.85400814]
[1734199889163,20.0,218.4,218.31,30.0]
[1734199889164,20.0,218.4,218.35,8.85400814]
[1734199889378,20.0,218.4,218.32,0.68685772]
[1734199889379,6.1921,218.43,218.36,8.85400814]
[1734199889787,6.1921,218.43,218.32,0.68685772]
[1734199889788,6.1921,218.43,218.35,8.85400814]
[1734199889991,6.1921,218.43,218.32,0.68685772]
[1734199889992,6.1921,218.43,218.36,8.85400814]
[1734199890189,6.1921,218.43,218.32,0.68685772]
[1734199890190,6.1921,218.43,218.39,8.85400814]
[1734199890373,1.5471,218.45,218.39,8.85400814]
[1734199891487,6.1921,218.48,218.41,8.85400814]
[1734199891688,6.1921,218.48,218.42,8.85400814]
[1734199892478,6.1921,218.48,218.41,8.85400814]
[1734199894401,6.1921,218.48,218.34,0.6866379]
[1734199894582,6.1921,218.48,218.39,8.85400814]
[1734199894791,6.1921,218.48,218.4,8.85400814]
[1734199894992,6.1921,218.48,218.41,8.85400814]
[1734199895187,6.1921,218.48,218.4,8.85400814]
[1734199896905,1.5471,218.51,218.45,8.85400814]
[1734199897094,1.5471,218.51,218.44,8.85400814]
[1734199899581,6.1921,218.53,218.47,8.85400814]
[1734199902309,6.1921,218.53,218.48,8.85400814]
[1734199902509,1.5212,218.57,218.48,8.85400814]
[1734199902510,20.0,218.56,218.48,8.85400814]
[1734199902712,20.0,218.56,218.51,8.85400814]
[1734199904208,1.5212,218.57,218.51,8.85400814]
[1734199904408,1.5212,218.57,218.5,8.85400814]
[1734199905812,1.5212,218.57,218.45,20.0]
[1734199906112,20.0,218.56,218.48,8.85400814]
[1734199907388,20.0,218.56,218.49,8.85400814]
[1734199907588,1.5212,218.57,218.5,23.776884]
[1734199907814,6.128,218.59,218.55,8.85400814]
[1734199908113,7.7641,218.64,218.56,8.85400814]
[1734199908520,7.7641,218.64,218.58,8.85400814]
[1734199909321,7.7641,218.64,218.58,13.80369919]
[1734199911522,7.7641,218.64,218.56,23.776884]
[1734199912005,7.7641,218.64,218.56,37.58058319]
[1734199912713,7.7641,218.64,218.57,13.80369919]
[1734199913218,7.7641,218.64,218.58,13.80369919]
[1734199913404,7.7641,218.69,218.59,13.80369919]
[1734199913603,20.0,218.66,218.6,13.80369919]
[1734199914000,20.0,218.66,218.61,13.80369919]
[1734199914211,7.7641,218.69,218.61,13.80369919]
[1734199915318,1.512,218.74,218.65,13.80369919]
[1734199915525,1.512,218.74,218.66,13.80369919]
[1734199916311,1.512,218.74,218.65,13.80369919]
[1734199916941,1.512,218.74,218.67,13.80369919]
[1734199917093,1.512,218.74,218.69,13.80369919]
[1734199917428,1.5875,218.79,218.72,13.80369919]
[1734199917596,1.5875,218.79,218.73,13.80369919]
[1734199918412,6.5657,218.8,218.74,13.80369919]
[1734199918621,6.5657,218.8,218.72,13.80369919]
[1734199918848,6.5657,218.8,218.71,37.58058319]
[1734199918999,6.5657,218.8,218.72,13.80369919]
[1734199920725,20.0,218.72,218.55,1.5929]
[1734199921030,0.25098,218.71,218.55,1.5929]
[1734199921242,20.0,218.72,218.61,13.80369919]
[1734199922107,20.0,218.72,218.6,13.80369919]
[1734199922757,20.0,218.72,218.58,13.80369919]
[1734199922758,0.25098,218.71,218.58,13.80369919]
[1734199923023,0.12549,218.69,218.57,13.80369919]
[1734199923411,0.12549,218.69,218.58,30.0]
[1734199923727,0.12549,218.69,218.57,13.80369919]
[1734199926827,20.0,218.65,218.55,13.80369919]
[1734199927243,20.0,218.65,218.56,13.80369919]
[1734199930326,20.0,218.65,218.59,13.80369919]
[1734199930545,6.5657,218.68,218.6,13.80369919]
[1734199932027,6.5657,218.68,218.63,13.80369919]
[1734199932204,1.5875,218.7,218.64,13.80369919]
[1734199932606,1.5875,218.7,218.63,13.80369919]
[1734199934135,21.5875,218.7,218.63,13.80369919]
[1734199936627,6.2321,218.73,218.64,37.58058319]
[1734199939012,6.2321,218.73,218.67,13.80369919]
[1734199939207,6.2321,218.73,218.68,13.80369919]
[1734199939512,6.2321,218.73,218.67,13.80369919]
[1734199941234,6.3318,218.8,218.72,13.80369919]
[1734199941432,6.3318,218.8,218.73,13.80369919]
[1734199941631,6.3318,218.8,218.74,13.80369919]
[1734199942113,6.3318,218.8,218.73,13.80369919]
[1734199946350,6.3318,218.8,218.71,37.58058319]
[1734199947238,6.3318,218.8,218.67,2.31378861]
[1734199947416,6.3318,218.8,218.71,13.80369919]
[1734199948443,6.3318,218.8,218.7,13.80369919]
[1734199948617,0.12549,218.76,218.65,13.80369919]
[1734199949036,0.25098,218.76,218.65,13.80369919]
[1734199949234,0.25098,218.76,218.66,30.0]
[1734199949641,0.25098,218.76,218.65,13.80369919]
[1734199950950,0.25098,218.76,218.62,13.80369919]
[1734199951252,20.0,218.7,218.61,13.80369919]
[1734199951429,20.0,218.7,218.6,13.80369919]
[1734199952527,20.0,218.7,218.61,23.776884]
[1734199952749,21.0,218.7,218.61,23.776884]
[1734199953637,21.0,218.7,218.61,37.58058319]
[1734199954153,21.0,218.7,218.6,13.80369919]
[1734199954528,21.0,218.7,218.62,13.80369919]
[1734199954758,1.0,218.7,218.65,13.80369919]
[1734199955957,1.0,218.7,218.64,13.80369919]
[1734199956341,1.0,218.7,218.62,13.80369919]
[1734199956732,21.0,218.7,218.62,13.80369919]
[1734199957050,21.0,218.7,218.6,13.80369919]
[1734199957247,21.0,218.7,218.61,30.0]
[1734199958131,0.12549,218.69,218.58,13.80369919]
[1734199958352,0.25098,218.69,218.58,13.80369919]
[1734199958559,21.0,218.7,218.59,13.80369919]
[1734199961055,21.0,218.7,218.6,13.80369919]
[1734199962232,21.0,218.7,218.57,23.776884]
[1734199962433,0.25098,218.69,218.58,30.0]
[1734199962736,20.0,218.68,218.58,30.0]
[1734199963734,20.0,218.68,218.57,37.58058319]
[1734199964439,0.25098,218.69,218.53,13.80369919]
[1734199964440,20.0,218.61,218.53,13.80369919]
[1734199964770,20.0,218.61,218.52,0.68604779]
[1734199964771,20.0,218.61,218.54,30.0]
[1734199965360,19.93967193,218.61,218.54,30.0]
[1734199965758,19.93967193,218.61,218.53,13.80369919]
[1734199969660,19.93967193,218.61,218.52,13.80369919]
[1734199970054,0.12549,218.6,218.49,13.80369919]
[1734199970270,0.25098,218.6,218.48,13.80369919]
[1734199971656,0.25098,218.6,218.46,1.6182]
[1734199971657,0.25098,218.6,218.49,13.80369919]
[1734199974682,0.12549,218.58,218.47,23.776884]
[1734199974859,20.0,218.54,218.45,13.80369919]
[1734199975067,20.0,218.54,218.44,13.80369919]
[1734199976065,20.0,218.54,218.4,1.6182]
[1734199976066,0.25098,218.53,218.41,13.80369919]
[1734199976268,0.25098,218.51,218.4,13.80369919]
[1734199976468,6.483,218.5,218.38,13.80369919]
[1734199976688,20.0,218.47,218.37,13.80369919]
[1734199977190,20.0,218.47,218.39,13.80369919]
[1734199978682,20.0,218.47,218.38,13.80369919]
[1734199979057,20.0,218.47,218.15,22.9192]
[1734199979058,0.12549,218.46,218.32,0.68670625]
[1734199979375,6.6021,218.43,218.3,13.80369919]
[1734199979549,20.0,218.4,218.3,13.80369919]
[1734199979748,20.0,218.4,218.29,13.80369919]
[1734199980198,20.0,218.4,218.3,30.0]
[1734199980398,20.0,218.4,218.3,43.80369919]
[1734199981401,20.0,218.4,218.28,30.0]
[1734199981693,20.0,218.4,218.28,43.80369919]
[1734199982401,20.0,218.4,218.29,13.80369919]
[1734199983184,20.0,218.36,218.24,13.80369919]
[1734199983494,20.0,218.31,218.22,13.80369919]
[1734199984424,20.0,218.31,218.23,30.0]
[1734199984583,20.0,218.31,218.21,13.80369919]
[1734199985210,20.0,218.31,218.23,13.80369919]
[1734199985398,20.0,218.31,218.22,13.80369919]
[1734199985578,20.0,218.31,218.21,13.80369919]
[1734199986307,20.0,218.31,218.18,0.6872116]
[1734199986308,20.0,218.31,218.2,13.80369919]
[1734199986608,0.12549,218.29,218.18,13.80369919]
[1734199986779,0.12549,218.29,218.17,31.93696274]
[1734199986984,0.25098,218.29,218.17,31.93696274]
[1734199987394,0.25098,218.29,218.09,1.5224]
[1734199987395,44.027864,218.25,218.09,1.5224]
[1734199987606,44.027864,218.25,218.12,13.80369919]
[1734199988001,44.027864,218.25,218.13,13.80369919]
[1734199988702,44.027864,218.25,218.12,13.80369919]
[1734199989311,20.25098,218.25,218.12,13.80369919]
[1734199990693,20.25098,218.25,218.14,13.80369919]
[1734199991096,20.25098,218.25,218.11,0.6875064]
[1734199991308,20.25098,218.25,218.13,13.80369919]
[1734199991503,20.12549,218.25,218.13,13.80369919]
[1734199991710,20.0,218.25,218.15,13.80369919]
[1734199991894,6.6021,218.28,218.15,13.80369919]
[1734199992297,6.6021,218.28,218.17,13.80369919]
[1734199992494,6.6021,218.28,218.18,13.80369919]
[1734199992998,6.6021,218.28,218.21,13.80369919]
[1734199993208,6.6021,218.28,218.15,0.68734674]
[1734199993209,6.6021,218.28,218.22,13.80369919]
[1734199994600,6.6021,218.28,218.2,13.80369919]
[1734199994805,6.6021,218.28,218.15,1.5224]
[1734199995003,6.6021,218.28,218.21,13.80369919]
[1734199995408,6.6021,218.28,218.2,13.80369919]
[1734199996393,6.6021,218.28,218.16,43.776884]
[1734199996712,6.6021,218.28,218.19,13.80369919]
[1734199998001,6.6021,218.28,218.17,30.0]
[1734199998002,20.0,218.25,218.16,37.58058319]
[1734199998304,20.0,218.25,218.18,13.80369919]
[1734199998506,6.6021,218.28,218.21,13.80369919]
[1734199998713,6.6021,218.28,218.23,13.80369919]
[1734199998904,21.5703,218.3,218.24,13.80369919]
[1734199999109,21.5703,218.3,218.23,13.80369919]
[1734200000411,21.5703,218.3,218.21,13.80369919]
[1734200000808,21.5703,218.3,218.17,20.0]
[1734200001110,21.5703,218.3,218.14,23.776884]
[1734200001111,21.5703,218.3,218.19,43.80369919]
[1734200001311,0.12549,218.29,218.19,43.80369919]
[1734200001502,0.12549,218.29,218.19,30.0]
[1734200002299,0.12549,218.29,218.17,13.80369919]
[1734200002714,21.5703,218.3,218.19,13.80369919]
[1734200002899,21.5703,218.3,218.2,13.80369919]
[1734200003717,21.5703,218.3,218.21,13.80369919]
[1734200003924,21.5703,218.3,218.16,0.68724758]
[1734200003925,1.5703,218.3,218.24,13.80369919]
[1734200004109,1.5703,218.3,218.21,13.80369919]
[1734200004502,1.5703,218.3,218.2,13.80369919]
[1734200004819,1.5703,218.3,218.19,13.80369919]
[1734200005198,21.5703,218.3,218.19,13.80369919]
[1734200005801,21.5703,218.3,218.21,13.80369919]
[1734200006010,21.5703,218.3,218.22,13.80369919]
[1734200006812,21.5703,218.3,218.2,13.80369919]
[1734200007004,21.5703,218.3,218.19,13.80369919]
[1734200007206,21.5703,218.3,218.21,13.80369919]
[1734200008406,21.5703,218.3,218.19,13.80369919]
[1734200008607,21.5703,218.3,218.2,13.80369919]
[1734200009022,21.5703,218.3,218.16,23.776884]
[1734200009329,21.5703,218.3,218.19,13.80369919]
[1734200009922,0.12549,218.29,218.19,13.80369919]
[1734200010620,0.12549,218.29,218.2,13.80369919]
[1734200010922,21.5703,218.3,218.21,13.80369919]
[1734200012436,1.5703,218.3,218.23,13.80369919]
[1734200012614,1.5703,218.3,218.24,13.80369919]
[1734200013129,6.0268,218.33,218.24,13.80369919]
[1734200013298,6.0268,218.33,218.23,13.80369919]
[1734200014501,20.0,218.3,218.22,13.80369919]
[1734200015227,20.0,218.3,218.17,1.63179]
[1734200015228,20.0,218.3,218.2,13.80369919]
[1734200017030,1.6014,218.35,218.11,152.2389]
[1734200017031,6.0268,218.25,218.16,13.80369919]
[1734200018308,20.0,218.22,218.14,13.80369919]
[1734200019031,20.0,218.22,218.15,13.80369919]
[1734200020526,6.0268,218.25,218.2,13.80369919]